[Event "*** Titled Tuesday Blitz"]
[Site "Chess.com"]
[Date "2019.07.02"]
[Round "9"]
[White "tunadrol"]
[Black "wnstop"]
[Result "0-1"]
[WhiteElo "2460"]
[BlackElo "2689"]
[TimeControl "180+2"]
[EndTime "15:03:44 PDT"]
[Termination "wnstop won by resignation"]

1. e4 {[%clk 0:03:01.9]} 1... c5 {[%clk 0:03:00.7]} 2. Nf3 {[%clk 0:03:02.8]}
2... Nc6 {[%clk 0:03:02.2]} 3. d4 {[%clk 0:03:03.4]} 3... cxd4 {[%clk
0:03:04.1]} 4. Nxd4 {[%clk 0:03:04.8]} 4... e5 {[%clk 0:03:05.6]} 5. Nb5 {[%clk
0:03:03.2]} 5... d6 {[%clk 0:03:07]} 6. N1c3 {[%clk 0:03:02.8]} 6... a6 {[%clk
0:03:08]} 7. Na3 {[%clk 0:03:03.8]} 7... Be7 {[%clk 0:03:09.5]} 8. Nd5 {[%clk
0:03:01.9]} 8... Nf6 {[%clk 0:03:10]} 9. Nxe7 {[%clk 0:02:46.7]} 9... Qxe7
{[%clk 0:03:10.2]} 10. f3 {[%clk 0:02:43.4]} 10... O-O {[%clk 0:03:08]} 11. c4
{[%clk 0:02:44]} 11... b5 {[%clk 0:02:25]} 12. Be3 {[%clk 0:02:38]} 12... bxc4
{[%clk 0:02:03.1]} 13. Bxc4 {[%clk 0:02:39.9]} 13... Be6 {[%clk 0:01:50.1]} 14.
O-O {[%clk 0:02:36.4]} 14... d5 {[%clk 0:01:44.9]} 15. exd5 {[%clk 0:02:22.7]}
15... Rfd8 {[%clk 0:01:45.6]} 16. Bg5 {[%clk 0:01:57.8]} 16... Bxd5 {[%clk
0:01:31.5]} 17. Bxf6 {[%clk 0:01:48.3]} 17... Qc5+ {[%clk 0:01:31.6]} 18. Kh1
{[%clk 0:01:47.6]} 18... Bxc4 {[%clk 0:01:29]} 19. Bxd8 {[%clk 0:01:40.6]} 19...
Bxf1 {[%clk 0:01:23.3]} 20. Rc1 {[%clk 0:01:29.5]} 20... Qf2 {[%clk 0:01:14]}
21. Qxf1 {[%clk 0:01:19.6]} 21... Qxf1+ {[%clk 0:01:15.6]} 22. Rxf1 {[%clk
0:01:20.9]} 22... Rxd8 {[%clk 0:01:17.1]} 23. Nc4 {[%clk 0:01:16.7]} 23... f5
{[%clk 0:01:10.2]} 24. h3 {[%clk 0:01:13.2]} 24... Kf7 {[%clk 0:01:11.2]} 25.
Rc1 {[%clk 0:01:07.1]} 25... Ke6 {[%clk 0:01:09.6]} 26. Nb6 {[%clk 0:01:00.9]}
26... Nd4 {[%clk 0:00:58.9]} 27. Rc7 {[%clk 0:00:55.3]} 27... e4 {[%clk
0:00:37]} 28. fxe4 {[%clk 0:00:54.3]} 28... fxe4 {[%clk 0:00:38.9]} 29. Nc4
{[%clk 0:00:53.8]} 29... Nf5 {[%clk 0:00:27.4]} 30. g4 {[%clk 0:00:44.2]} 30...
Ne7 {[%clk 0:00:28.4]} 31. Kg2 {[%clk 0:00:40.3]} 31... Rd3 {[%clk 0:00:24.9]}
32. Rc5 {[%clk 0:00:31.8]} 32... Ng6 {[%clk 0:00:22.2]} 33. Rc6+ {[%clk
0:00:29.7]} 33... Kd5 {[%clk 0:00:22.2]} 34. Rc7 {[%clk 0:00:18.9]} 34... Nf4+
{[%clk 0:00:22.9]} 35. Kf2 {[%clk 0:00:20.2]} 35... Nxh3+ {[%clk 0:00:21.7]} 36.
Ke2 {[%clk 0:00:21.4]} 36... Nf4+ {[%clk 0:00:22.6]} 37. Kf2 {[%clk 0:00:22.6]}
37... Rf3+ {[%clk 0:00:23.6]} 38. Ke1 {[%clk 0:00:23.5]} 38... Ne6 {[%clk
0:00:20.1]} 39. Nb6+ {[%clk 0:00:17.3]} 39... Ke5 {[%clk 0:00:17.6]} 40. Re7
{[%clk 0:00:15.2]} 40... Rf4 {[%clk 0:00:08.5]} 41. Nc4+ {[%clk 0:00:12]} 41...
Kf6 {[%clk 0:00:09.1]} 42. Ra7 {[%clk 0:00:10.1]} 42... Rxg4 {[%clk 0:00:10.2]}
43. Rxa6 {[%clk 0:00:11.3]} 43... h5 {[%clk 0:00:11.3]} 44. Ne3 {[%clk
0:00:09.6]} 44... Rg5 {[%clk 0:00:10.6]} 45. b4 {[%clk 0:00:07.9]} 45... h4
{[%clk 0:00:11.4]} 46. Ra8 {[%clk 0:00:08.3]} 46... Rg3 {[%clk 0:00:09.4]} 47.
Kf2 {[%clk 0:00:08.5]} 47... Rf3+ {[%clk 0:00:10.1]} 48. Ke2 {[%clk 0:00:09.2]}
48... Nf4+ {[%clk 0:00:11.4]} 49. Kd2 {[%clk 0:00:10]} 49... Ng6 {[%clk
0:00:08.2]} 50. Nd5+ {[%clk 0:00:08.4]} 50... Kg5 {[%clk 0:00:08.9]} 51. Ra5
{[%clk 0:00:07.1]} 51... Rf5 {[%clk 0:00:07.8]} 52. Ne3 {[%clk 0:00:06.4]} 52...
Rxa5 {[%clk 0:00:04.9]} 53. bxa5 {[%clk 0:00:08.3]} 53... Ne5 {[%clk 0:00:06.1]}
54. a6 {[%clk 0:00:07.6]} 54... Nc6 {[%clk 0:00:07.1]} 55. Nf1 {[%clk
0:00:08.5]} 55... Kf4 {[%clk 0:00:08.1]} 56. Ke2 {[%clk 0:00:09.8]} 56... g5
{[%clk 0:00:08.9]} 57. a4 {[%clk 0:00:10.1]} 57... g4 {[%clk 0:00:10.1]} 58. Kf2
{[%clk 0:00:10.6]} 58... g3+ {[%clk 0:00:11.3]} 59. Kg2 {[%clk 0:00:11.7]} 59...
e3 {[%clk 0:00:12.4]} 60. Nxe3 {[%clk 0:00:10.7]} 60... Kxe3 {[%clk 0:00:13.5]}
61. a5 {[%clk 0:00:12.1]} 61... Kf4 {[%clk 0:00:11.9]} 62. Kh3 {[%clk
0:00:12.3]} 62... Kf3 {[%clk 0:00:12.6]} 63. Kxh4 {[%clk 0:00:13.6]} 63... g2
{[%clk 0:00:13.6]} 64. Kg5 {[%clk 0:00:13.9]} 64... g1=Q+ {[%clk 0:00:14.8]} 65.
Kf5 {[%clk 0:00:14]} 65... Qa7 {[%clk 0:00:16.7]} 0-1

[Event "*** Titled Tuesday Blitz"]
[Site "Chess.com"]
[Date "2019.07.02"]
[Round "9"]
[White "Spring199"]
[Black "deBaller"]
[Result "1/2-1/2"]
[WhiteElo "2186"]
[BlackElo "2359"]
[TimeControl "180+2"]
[EndTime "15:03:47 PDT"]
[Termination "Game drawn by repetition"]

1. d4 {[%clk 0:03:00.9]} 1... e6 {[%clk 0:03:00.2]} 2. c4 {[%clk 0:03:01.6]}
2... Nf6 {[%clk 0:03:01.3]} 3. Nf3 {[%clk 0:03:02]} 3... Bb4+ {[%clk 0:03:01.9]}
4. Bd2 {[%clk 0:03:01.1]} 4... a5 {[%clk 0:03:00.6]} 5. g3 {[%clk 0:02:59.6]}
5... d6 {[%clk 0:02:59.7]} 6. Bg2 {[%clk 0:03:00.2]} 6... Nc6 {[%clk 0:03:00.9]}
7. O-O {[%clk 0:03:02.1]} 7... Bxd2 {[%clk 0:03:00.7]} 8. Nbxd2 {[%clk
0:03:02.3]} 8... O-O {[%clk 0:03:02.6]} 9. e3 {[%clk 0:02:55.9]} 9... e5 {[%clk
0:03:03]} 10. d5 {[%clk 0:02:56.2]} 10... Ne7 {[%clk 0:03:03.5]} 11. Nh4 {[%clk
0:02:54.8]} 11... Nd7 {[%clk 0:02:54.9]} 12. e4 {[%clk 0:02:51.5]} 12... f5
{[%clk 0:02:52.7]} 13. exf5 {[%clk 0:02:50.6]} 13... Nxf5 {[%clk 0:02:52.2]} 14.
Nxf5 {[%clk 0:02:49.2]} 14... Rxf5 {[%clk 0:02:54.1]} 15. Be4 {[%clk 0:02:46.1]}
15... Rf8 {[%clk 0:02:53.9]} 16. Bg2 {[%clk 0:02:39.3]} 16... Nc5 {[%clk
0:02:53]} 17. Ne4 {[%clk 0:02:40.5]} 17... b6 {[%clk 0:02:53.2]} 18. Nxc5 {[%clk
0:02:40.4]} 18... bxc5 {[%clk 0:02:55.1]} 19. Be4 {[%clk 0:02:41.6]} 19... Qf6
{[%clk 0:02:50.4]} 20. Qc2 {[%clk 0:02:42.3]} 20... g6 {[%clk 0:02:48.7]} 21.
Rad1 {[%clk 0:02:37.6]} 21... Rb8 {[%clk 0:02:49.4]} 22. b3 {[%clk 0:02:37.6]}
22... Bh3 {[%clk 0:02:47.2]} 23. Rfe1 {[%clk 0:02:37.7]} 23... Rb4 {[%clk
0:02:46.2]} 24. Rd3 {[%clk 0:02:32.3]} 24... a4 {[%clk 0:02:41.9]} 25. Rf3
{[%clk 0:02:30.6]} 25... axb3 {[%clk 0:02:29.3]} 26. axb3 {[%clk 0:02:27.5]}
26... Qe7 {[%clk 0:02:11.1]} 27. Rxf8+ {[%clk 0:02:24.7]} 27... Qxf8 {[%clk
0:02:13]} 28. Ra1 {[%clk 0:02:25.3]} 28... Kg7 {[%clk 0:02:06.8]} 29. Ra7 {[%clk
0:02:22.9]} 29... Qb8 {[%clk 0:02:06.8]} 30. Ra3 {[%clk 0:02:13.1]} 30... Rb7
{[%clk 0:02:07.1]} 31. Qa2 {[%clk 0:02:13.2]} 31... Qd8 {[%clk 0:02:02.3]} 32.
Qd2 {[%clk 0:01:54.5]} 32... Qf6 {[%clk 0:01:51.9]} 33. Bg2 {[%clk 0:01:43.8]}
33... Bf5 {[%clk 0:01:47.5]} 34. h3 {[%clk 0:01:37.4]} 34... h5 {[%clk
0:01:41.1]} 35. Kh2 {[%clk 0:01:36.6]} 35... Rb8 {[%clk 0:01:32.8]} 36. Ra7
{[%clk 0:01:35.8]} 36... Qe7 {[%clk 0:01:30.1]} 37. Qa5 {[%clk 0:01:36]} 37...
Rc8 {[%clk 0:01:20]} 38. b4 {[%clk 0:01:35.5]} 38... cxb4 {[%clk 0:01:20.9]} 39.
Qxb4 {[%clk 0:01:37.4]} 39... Rf8 {[%clk 0:01:10.4]} 40. Qa5 {[%clk 0:01:24]}
40... Rf7 {[%clk 0:01:11.1]} 41. Ra8 {[%clk 0:01:12.1]} 41... h4 {[%clk
0:01:10.5]} 42. Qb5 {[%clk 0:01:07.8]} 42... Rf8 {[%clk 0:00:31.2]} 43. Ra7
{[%clk 0:01:03.1]} 43... Rf7 {[%clk 0:00:29.6]} 44. Qc6 {[%clk 0:00:51.9]} 44...
Bd3 {[%clk 0:00:28.1]} 45. g4 {[%clk 0:00:37.4]} 45... g5 {[%clk 0:00:19]} 46.
Kg1 {[%clk 0:00:33.1]} 46... Kh6 {[%clk 0:00:16.3]} 47. Ra8 {[%clk 0:00:33.2]}
47... Qf6 {[%clk 0:00:15.8]} 48. f3 {[%clk 0:00:30.9]} 48... Qf4 {[%clk
0:00:14]} 49. Qe8 {[%clk 0:00:20.4]} 49... Bh7 {[%clk 0:00:09.6]} 50. Rd8 {[%clk
0:00:12.2]} 50... e4 {[%clk 0:00:09.4]} 51. fxe4 {[%clk 0:00:06.7]} 51... Qf2+
{[%clk 0:00:08.3]} 52. Kh2 {[%clk 0:00:07.4]} 52... Qg3+ {[%clk 0:00:07.4]} 53.
Kh1 {[%clk 0:00:07]} 53... Qe1+ {[%clk 0:00:07.6]} 54. Kh2 {[%clk 0:00:07.5]}
54... Qg3+ {[%clk 0:00:07.8]} 55. Kg1 {[%clk 0:00:07.3]} 55... Qf2+ {[%clk
0:00:07.5]} 56. Kh1 {[%clk 0:00:07.8]} 56... Qe1+ {[%clk 0:00:06.5]} 57. Kh2
{[%clk 0:00:08.9]} 57... Qg3+ {[%clk 0:00:07.7]} 1/2-1/2

[Event "*** Titled Tuesday Blitz"]
[Site "Chess.com"]
[Date "2019.07.02"]
[Round "9"]
[White "playerorkinyo"]
[Black "nubair1198"]
[Result "0-1"]
[WhiteElo "2402"]
[BlackElo "2638"]
[TimeControl "180+2"]
[EndTime "15:03:49 PDT"]
[Termination "nubair1198 won by resignation"]

1. c4 {[%clk 0:02:58]} 1... Nf6 {[%clk 0:03:00.4]} 2. Nc3 {[%clk 0:02:57.9]}
2... g6 {[%clk 0:03:02]} 3. e4 {[%clk 0:02:55]} 3... Bg7 {[%clk 0:03:03.9]} 4.
d4 {[%clk 0:02:54.7]} 4... O-O {[%clk 0:03:05.3]} 5. Be2 {[%clk 0:02:55.8]} 5...
d6 {[%clk 0:03:02.5]} 6. Be3 {[%clk 0:02:54.6]} 6... e5 {[%clk 0:03:03.6]} 7. d5
{[%clk 0:02:55.4]} 7... Na6 {[%clk 0:03:05.1]} 8. g4 {[%clk 0:02:56.2]} 8... Nc5
{[%clk 0:03:06.4]} 9. f3 {[%clk 0:02:40.1]} 9... a5 {[%clk 0:03:07.5]} 10. h4
{[%clk 0:02:38]} 10... h5 {[%clk 0:03:08.8]} 11. g5 {[%clk 0:02:37.9]} 11... Nh7
{[%clk 0:03:07.9]} 12. Qd2 {[%clk 0:02:39.4]} 12... a4 {[%clk 0:03:06.8]} 13.
O-O-O {[%clk 0:02:39.2]} 13... f5 {[%clk 0:02:58.6]} 14. Nh3 {[%clk 0:02:31.3]}
14... f4 {[%clk 0:02:46.1]} 15. Bg1 {[%clk 0:02:29.8]} 15... Bd7 {[%clk
0:02:44.8]} 16. Nf2 {[%clk 0:02:30.1]} 16... Qb8 {[%clk 0:02:39]} 17. Nd3 {[%clk
0:02:30.1]} 17... b6 {[%clk 0:02:25.1]} 18. Kc2 {[%clk 0:02:27.5]} 18... Rf7
{[%clk 0:02:16.1]} 19. Bf2 {[%clk 0:02:28]} 19... Nf8 {[%clk 0:02:12.9]} 20. Ra1
{[%clk 0:02:28.6]} 20... Be8 {[%clk 0:02:11.5]} 21. b4 {[%clk 0:02:21.1]} 21...
axb3+ {[%clk 0:02:08.4]} 22. axb3 {[%clk 0:02:17.9]} 22... c6 {[%clk 0:02:09.7]}
23. b4 {[%clk 0:02:04.3]} 23... Nxd3 {[%clk 0:02:07.5]} 24. Bxd3 {[%clk
0:02:05]} 24... Rfa7 {[%clk 0:02:00.9]} 25. Kb2 {[%clk 0:01:34.1]} 25... c5
{[%clk 0:01:21.5]} 26. Rxa7 {[%clk 0:01:15.2]} 26... Qxa7 {[%clk 0:01:21.1]} 27.
bxc5 {[%clk 0:01:01.8]} 27... bxc5 {[%clk 0:01:12.1]} 28. Rb1 {[%clk 0:00:57]}
28... Qa3+ {[%clk 0:00:45.3]} 29. Kc2 {[%clk 0:00:49.1]} 29... Ra4 {[%clk
0:00:45.6]} 30. Qc1 {[%clk 0:00:41.1]} 30... Ra5 {[%clk 0:00:32.1]} 31. Qxa3
{[%clk 0:00:38.4]} 31... Rxa3 {[%clk 0:00:34]} 32. Kb2 {[%clk 0:00:38.4]} 32...
Ra6 {[%clk 0:00:33.3]} 33. Ra1 {[%clk 0:00:38.5]} 33... Rxa1 {[%clk 0:00:25.3]}
34. Kxa1 {[%clk 0:00:37.7]} 34... Kf7 {[%clk 0:00:25.7]} 35. Bc2 {[%clk
0:00:38.6]} 35... Bd7 {[%clk 0:00:24.7]} 36. Kb2 {[%clk 0:00:38.6]} 36... Ke7
{[%clk 0:00:24.2]} 37. Ka3 {[%clk 0:00:39.2]} 37... Kd8 {[%clk 0:00:20.5]} 38.
Ba4 {[%clk 0:00:39.8]} 38... Bh3 {[%clk 0:00:21.1]} 39. Bb5 {[%clk 0:00:27.8]}
39... Nd7 {[%clk 0:00:21.3]} 40. Bxd7 {[%clk 0:00:20.3]} 40... Kxd7 {[%clk
0:00:22.1]} 41. Nb1 {[%clk 0:00:20.5]} 41... Bf8 {[%clk 0:00:20.7]} 42. Nd2
{[%clk 0:00:21.3]} 42... Be7 {[%clk 0:00:22.2]} 43. Kb3 {[%clk 0:00:22.3]} 43...
Bd8 {[%clk 0:00:23.6]} 44. Be1 {[%clk 0:00:23.6]} 44... Ba5 {[%clk 0:00:24.8]}
45. Kc2 {[%clk 0:00:24.7]} 45... Bg2 {[%clk 0:00:25.4]} 46. Kd3 {[%clk
0:00:23.7]} 46... Bxd2 {[%clk 0:00:23.5]} 47. Bxd2 {[%clk 0:00:25.2]} 47... Bxf3
{[%clk 0:00:25]} 48. Be1 {[%clk 0:00:26.5]} 48... Kc7 {[%clk 0:00:26.1]} 49. Bd2
{[%clk 0:00:27]} 49... Kb6 {[%clk 0:00:27.5]} 50. Be1 {[%clk 0:00:28]} 50... Bg2
{[%clk 0:00:28.7]} 51. Bd2 {[%clk 0:00:19.5]} 51... Bf1+ {[%clk 0:00:29.7]} 52.
Kc3 {[%clk 0:00:19.3]} 52... Be2 {[%clk 0:00:30.6]} 53. Be1 {[%clk 0:00:18.2]}
53... Ka6 {[%clk 0:00:28.3]} 54. Bd2 {[%clk 0:00:15.8]} 54... Bg4 {[%clk
0:00:21.3]} 55. Be1 {[%clk 0:00:15.4]} 55... Bd7 {[%clk 0:00:21.9]} 56. Kd2
{[%clk 0:00:15.6]} 56... Ka5 {[%clk 0:00:22.1]} 57. Kd3+ {[%clk 0:00:15.5]}
57... Ka4 {[%clk 0:00:23.3]} 58. Kc3 {[%clk 0:00:16.9]} 58... Ka3 {[%clk
0:00:24.2]} 59. Bd2 {[%clk 0:00:17.7]} 59... Bh3 {[%clk 0:00:24.7]} 60. Be1
{[%clk 0:00:17.8]} 60... Bg2 {[%clk 0:00:25.3]} 61. Kd3 {[%clk 0:00:18.3]} 61...
Kb3 {[%clk 0:00:27.2]} 62. Ba5 {[%clk 0:00:18.5]} 62... Bf1+ {[%clk 0:00:24.7]}
63. Kd2 {[%clk 0:00:19.8]} 63... Kxc4 {[%clk 0:00:25.3]} 64. Bc7 {[%clk
0:00:20.5]} 64... Bg2 {[%clk 0:00:26.4]} 65. Bxd6 {[%clk 0:00:20.2]} 65... Kd4
{[%clk 0:00:23.8]} 66. Bf8 {[%clk 0:00:13.1]} 66... Bxe4 {[%clk 0:00:24.6]} 67.
d6 {[%clk 0:00:13.5]} 67... Bc6 {[%clk 0:00:26.1]} 0-1

[Event "*** Titled Tuesday Blitz"]
[Site "Chess.com"]
[Date "2019.07.02"]
[Round "9"]
[White "JuliaEfremova"]
[Black "NM2019"]
[Result "1-0"]
[WhiteElo "2011"]
[BlackElo "2142"]
[TimeControl "180+2"]
[EndTime "15:03:55 PDT"]
[Termination "JuliaEfremova won on time"]

1. d4 {[%clk 0:02:57.2]} 1... e6 {[%clk 0:02:59.9]} 2. Bf4 {[%clk 0:02:58.3]}
2... f5 {[%clk 0:03:01.1]} 3. e3 {[%clk 0:02:56.5]} 3... Nf6 {[%clk 0:03:02.2]}
4. Nf3 {[%clk 0:02:57.4]} 4... Be7 {[%clk 0:03:02.2]} 5. Be2 {[%clk 0:02:58.6]}
5... O-O {[%clk 0:03:03.3]} 6. O-O {[%clk 0:03:00]} 6... Ne4 {[%clk 0:03:04.6]}
7. c4 {[%clk 0:03:00.1]} 7... d6 {[%clk 0:03:05]} 8. Nc3 {[%clk 0:02:59.3]} 8...
g5 {[%clk 0:03:05.7]} 9. Bg3 {[%clk 0:02:51]} 9... Nxc3 {[%clk 0:03:06.7]} 10.
bxc3 {[%clk 0:02:50.8]} 10... h5 {[%clk 0:03:08]} 11. h3 {[%clk 0:02:43.1]}
11... g4 {[%clk 0:03:07.8]} 12. hxg4 {[%clk 0:02:40.6]} 12... hxg4 {[%clk
0:03:08.2]} 13. Nh2 {[%clk 0:02:37]} 13... Nd7 {[%clk 0:03:08.6]} 14. Bxg4
{[%clk 0:02:36.9]} 14... fxg4 {[%clk 0:03:07.6]} 15. Qxg4+ {[%clk 0:02:38.2]}
15... Bg5 {[%clk 0:02:55.4]} 16. Qxe6+ {[%clk 0:02:38.6]} 16... Rf7 {[%clk
0:02:49.4]} 17. Ng4 {[%clk 0:02:36.1]} 17... Nf8 {[%clk 0:02:41.3]} 18. Nh6+
{[%clk 0:02:32.7]} 18... Bxh6 {[%clk 0:02:38.1]} 19. Qxh6 {[%clk 0:02:33.2]}
19... Rh7 {[%clk 0:02:27.5]} 20. Qf4 {[%clk 0:02:31.8]} 20... Qe8 {[%clk
0:02:22.8]} 21. f3 {[%clk 0:02:26]} 21... Ng6 {[%clk 0:02:16.6]} 22. Qg5 {[%clk
0:02:23.7]} 22... Rg7 {[%clk 0:02:13.2]} 23. Kf2 {[%clk 0:02:16.5]} 23... Be6
{[%clk 0:02:06.3]} 24. d5 {[%clk 0:02:15.3]} 24... Bf7 {[%clk 0:02:06.9]} 25.
Rh1 {[%clk 0:02:12.4]} 25... Ne5 {[%clk 0:01:55.5]} 26. Qh6 {[%clk 0:02:12.8]}
26... Nd3+ {[%clk 0:01:47.3]} 27. Ke2 {[%clk 0:02:10]} 27... Bg6 {[%clk
0:01:42.3]} 28. Bh4 {[%clk 0:01:45.6]} 28... Qe5 {[%clk 0:01:26.1]} 29. Bg5
{[%clk 0:01:14.2]} 29... Kf7 {[%clk 0:01:17.7]} 30. e4 {[%clk 0:00:50.1]} 30...
Rh7 {[%clk 0:00:59.8]} 31. Qxh7+ {[%clk 0:00:45.9]} 31... Bxh7 {[%clk
0:01:00.3]} 32. Rxh7+ {[%clk 0:00:47.3]} 32... Kg6 {[%clk 0:01:01.5]} 33. Rah1
{[%clk 0:00:47.8]} 33... Qxg5 {[%clk 0:00:59.1]} 34. Kxd3 {[%clk 0:00:46.3]}
34... Rg8 {[%clk 0:00:51.9]} 35. g4 {[%clk 0:00:39.2]} 35... Rg7 {[%clk
0:00:46.2]} 36. R7h5 {[%clk 0:00:35.8]} 36... Qf4 {[%clk 0:00:41.6]} 37. Rf5
{[%clk 0:00:36.8]} 37... Qg3 {[%clk 0:00:41.1]} 38. Rhh5 {[%clk 0:00:38]} 38...
Qf2 {[%clk 0:00:19.5]} 39. Rhg5+ {[%clk 0:00:33.5]} 39... Kh7 {[%clk 0:00:20]}
40. Rh5+ {[%clk 0:00:34.7]} 40... Kg8 {[%clk 0:00:21.1]} 41. Rf6 {[%clk
0:00:32.5]} 41... Qxa2 {[%clk 0:00:20.2]} 42. Rhf5 {[%clk 0:00:32.6]} 42... Qb1+
{[%clk 0:00:18.7]} 43. Kd2 {[%clk 0:00:32.3]} 43... Qb2+ {[%clk 0:00:19.2]} 44.
Kd3 {[%clk 0:00:33]} 44... Qb1+ {[%clk 0:00:20.3]} 45. Ke3 {[%clk 0:00:28.5]}
45... Qc1+ {[%clk 0:00:19.2]} 46. Kf2 {[%clk 0:00:27.1]} 46... Qd2+ {[%clk
0:00:18.6]} 47. Kg3 {[%clk 0:00:28.2]} 47... Qe1+ {[%clk 0:00:16.5]} 48. Kf4
{[%clk 0:00:28.4]} 48... Qd2+ {[%clk 0:00:16.1]} 49. Kg3 {[%clk 0:00:29.6]}
49... Qe1+ {[%clk 0:00:09.5]} 50. Kg2 {[%clk 0:00:29.9]} 50... Qe2+ {[%clk
0:00:09.6]} 51. Kg3 {[%clk 0:00:31.3]} 51... Rh7 {[%clk 0:00:10.4]} 52. Rg5+
{[%clk 0:00:31.2]} 52... Rg7 {[%clk 0:00:10.3]} 53. Rgf5 {[%clk 0:00:31.6]}
53... Qe3 {[%clk 0:00:08.9]} 54. Rf8+ {[%clk 0:00:30.3]} 54... Kh7 {[%clk
0:00:10.1]} 55. Rh5+ {[%clk 0:00:32.2]} 55... Kg6 {[%clk 0:00:11.1]} 56. Rff5
{[%clk 0:00:30.3]} 56... a5 {[%clk 0:00:08.8]} 57. Rh8 {[%clk 0:00:26.7]} 57...
a4 {[%clk 0:00:09.3]} 58. Rhf8 {[%clk 0:00:27]} 58... Qxc3 {[%clk 0:00:05.8]}
59. g5 {[%clk 0:00:26.3]} 59... Qe5+ {[%clk 0:00:03.2]} 60. Kg4 {[%clk
0:00:23.6]} 1-0

[Event "*** Titled Tuesday Blitz"]
[Site "Chess.com"]
[Date "2019.07.02"]
[Round "9"]
[White "OparinGrigoriy"]
[Black "Alexander_Moskalenko"]
[Result "1/2-1/2"]
[WhiteElo "2996"]
[BlackElo "2886"]
[TimeControl "180+2"]
[EndTime "15:03:56 PDT"]
[Termination "Game drawn - insufficient material"]

1. Nf3 {[%clk 0:03:01.9]} 1... c5 {[%clk 0:03:00.4]} 2. c4 {[%clk 0:03:02.4]}
2... Nc6 {[%clk 0:03:02.3]} 3. d4 {[%clk 0:03:03.9]} 3... cxd4 {[%clk
0:02:59.8]} 4. Nxd4 {[%clk 0:03:05.8]} 4... Nf6 {[%clk 0:03:01.5]} 5. Nc3 {[%clk
0:03:07]} 5... e6 {[%clk 0:03:01.1]} 6. e4 {[%clk 0:03:07.8]} 6... Bb4 {[%clk
0:02:57.8]} 7. Nxc6 {[%clk 0:03:08.5]} 7... dxc6 {[%clk 0:02:42.1]} 8. Qxd8+
{[%clk 0:03:08.9]} 8... Kxd8 {[%clk 0:02:44]} 9. e5 {[%clk 0:03:08.5]} 9... Ne4
{[%clk 0:02:41.7]} 10. a3 {[%clk 0:03:09.8]} 10... Bxc3+ {[%clk 0:02:35.7]} 11.
bxc3 {[%clk 0:03:10.9]} 11... b6 {[%clk 0:02:37.2]} 12. Be3 {[%clk 0:03:07.2]}
12... Kc7 {[%clk 0:02:37.6]} 13. Bd3 {[%clk 0:03:00.3]} 13... Nc5 {[%clk
0:02:38.5]} 14. Bxc5 {[%clk 0:03:01.3]} 14... bxc5 {[%clk 0:02:40.4]} 15. O-O-O
{[%clk 0:02:57.6]} 15... Rb8 {[%clk 0:02:22.6]} 16. Kc2 {[%clk 0:02:53.9]} 16...
Bd7 {[%clk 0:02:20.8]} 17. h4 {[%clk 0:02:54.6]} 17... Rb6 {[%clk 0:02:19.1]}
18. Rb1 {[%clk 0:02:52.9]} 18... h6 {[%clk 0:02:19.2]} 19. Rh3 {[%clk
0:02:49.4]} 19... Kd8 {[%clk 0:01:48.6]} 20. h5 {[%clk 0:02:37.4]} 20... Ke7
{[%clk 0:01:39.5]} 21. Rxb6 {[%clk 0:02:36.3]} 21... axb6 {[%clk 0:01:40.5]} 22.
Rg3 {[%clk 0:02:37.8]} 22... Rg8 {[%clk 0:01:34.8]} 23. Bh7 {[%clk 0:02:27.6]}
23... Rh8 {[%clk 0:01:35.5]} 24. Be4 {[%clk 0:02:29]} 24... Rg8 {[%clk
0:01:36.7]} 25. f4 {[%clk 0:02:29.9]} 25... f5 {[%clk 0:01:27.2]} 26. Bf3 {[%clk
0:02:01.2]} 26... Kf7 {[%clk 0:01:27.8]} 27. Rh3 {[%clk 0:02:01.1]} 27... Ra8
{[%clk 0:01:24.5]} 28. Kb3 {[%clk 0:01:59.1]} 28... Ke7 {[%clk 0:01:25.7]} 29.
Rh1 {[%clk 0:01:59.3]} 29... Be8 {[%clk 0:01:26.8]} 30. Rb1 {[%clk 0:01:51.9]}
30... Ra7 {[%clk 0:01:23.2]} 31. Kc2 {[%clk 0:01:49.2]} 31... Ra6 {[%clk
0:01:24.4]} 32. Kb3 {[%clk 0:01:45.6]} 32... Ra7 {[%clk 0:01:24.9]} 33. Ka2
{[%clk 0:01:46.5]} 33... Ra6 {[%clk 0:01:25.7]} 34. Rd1 {[%clk 0:01:47.2]} 34...
b5 {[%clk 0:01:13.2]} 35. Kb3 {[%clk 0:01:35.8]} 35... bxc4+ {[%clk 0:01:11.9]}
36. Kb2 {[%clk 0:01:36.8]} 36... Bd7 {[%clk 0:01:06.2]} 37. Ra1 {[%clk
0:01:28.9]} 37... Ra4 {[%clk 0:00:53.6]} 38. Bd1 {[%clk 0:01:29.5]} 38... Ra7
{[%clk 0:00:54.9]} 39. a4 {[%clk 0:01:31]} 39... Bc8 {[%clk 0:00:56.6]} 40. Bf3
{[%clk 0:01:27.6]} 40... Rd7 {[%clk 0:00:39.3]} 41. Kc2 {[%clk 0:01:28.6]} 41...
Ra7 {[%clk 0:00:33.3]} 42. Bxc6 {[%clk 0:01:23.6]} 42... Bd7 {[%clk 0:00:32.9]}
43. Bxd7 {[%clk 0:00:54.2]} 43... Kxd7 {[%clk 0:00:34.8]} 44. g3 {[%clk
0:00:51.8]} 44... Kc6 {[%clk 0:00:35.8]} 45. Rd1 {[%clk 0:00:52.8]} 45... Rxa4
{[%clk 0:00:36.9]} 46. Rd6+ {[%clk 0:00:53.9]} 46... Kb5 {[%clk 0:00:38.4]} 47.
Rxe6 {[%clk 0:00:53.8]} 47... Ra2+ {[%clk 0:00:39.7]} 48. Kb1 {[%clk 0:00:55.2]}
48... Re2 {[%clk 0:00:39]} 49. Kc1 {[%clk 0:00:35.8]} 49... Re3 {[%clk
0:00:37.6]} 50. Kc2 {[%clk 0:00:35.2]} 50... Rxg3 {[%clk 0:00:36.8]} 51. Rg6
{[%clk 0:00:36.3]} 51... Rf3 {[%clk 0:00:38.2]} 52. Rxg7 {[%clk 0:00:36.7]}
52... Rxf4 {[%clk 0:00:39.6]} 53. Rg6 {[%clk 0:00:35.5]} 53... Re4 {[%clk
0:00:32.8]} 54. e6 {[%clk 0:00:36.4]} 54... Kc6 {[%clk 0:00:33.7]} 55. Rxh6
{[%clk 0:00:33.1]} 55... Kd6 {[%clk 0:00:27.8]} 56. Kd2 {[%clk 0:00:32.5]} 56...
Ke7 {[%clk 0:00:23.6]} 57. Rg6 {[%clk 0:00:31.9]} 57... Rh4 {[%clk 0:00:23.1]}
58. h6 {[%clk 0:00:33]} 58... Rh3 {[%clk 0:00:24.3]} 59. Kc2 {[%clk 0:00:19.4]}
59... Rh2+ {[%clk 0:00:23.1]} 60. Kd1 {[%clk 0:00:20.8]} 60... f4 {[%clk
0:00:19.6]} 61. Ke1 {[%clk 0:00:20]} 61... Rh3 {[%clk 0:00:20.9]} 62. Kf2 {[%clk
0:00:13.6]} 62... Rxc3 {[%clk 0:00:14]} 63. Kg2 {[%clk 0:00:13.4]} 63... f3+
{[%clk 0:00:14]} 64. Kf2 {[%clk 0:00:10.4]} 64... Rc2+ {[%clk 0:00:14.5]} 65.
Kxf3 {[%clk 0:00:11.7]} 65... Rh2 {[%clk 0:00:16.1]} 66. Rg5 {[%clk 0:00:09]}
66... Rxh6 {[%clk 0:00:13.3]} 67. Rxc5 {[%clk 0:00:10]} 67... Rf6+ {[%clk
0:00:14.9]} 68. Ke4 {[%clk 0:00:10.6]} 68... Rxe6+ {[%clk 0:00:16.8]} 69. Kd4
{[%clk 0:00:11.9]} 69... Rd6+ {[%clk 0:00:18.3]} 70. Kxc4 {[%clk 0:00:13.3]}
70... Kd7 {[%clk 0:00:20.2]} 71. Rd5 {[%clk 0:00:14.7]} 71... Kc6 {[%clk
0:00:20.9]} 72. Rxd6+ {[%clk 0:00:15.5]} 72... Kxd6 {[%clk 0:00:22.8]} 1/2-1/2